Workbook

Sheet FP산정(간이법)
B2: 기능점수 산정 | J2: 신규개발 | K2: =SUMIF(J:J,J2,I:I) -> 7.50 FP
J3: 기능변경 | K3: =SUMIF(J:J,J3,Q:Q) -> 22.53 FP
J4: 기능삭제 | K4: 측정 비대상
J5: 수정없이 재사용 | K5: =SUMIF(J:J,J5,I:I) -> 15.90 FP
F6: EIF | G6: = 관리주체가 외부에 있으므로 기능변경 측정 대상이 아님에 유의
B7: 기능명 | F7: 데이터 및 트랜잭션 기능 | I7: FP 산출 | J7: 재사용유형 | K7: FTR 변경량 | L7: DET 변경량 | M7: FTR 변경률 | N7: DET 변경률 | O7: 기능 변경률 | P7: 영향 계수 | Q7: 재사용 기능점수 | R7: 비고
B8: ①어플리케이션명 | C8: ②세부 업무명 | D8: ③단위프로세스명 | E8: 단위프로세스 설명 | F8: ④FP유형 | G8: ⑤FTR | H8: ⑥DET | I8: ⑧가중치
B9: 총무시스템 | C9: 회의실관리 | D9: 회의실 사용신청 정보 | E9: 회의실 사용신청 내역 정보 | F9: ILF | H9: 20 | I9: =IF(F9="","",IF(F9="EI",4,IF(F9="EO",5.2,IF(F9="EQ",3.9,IF(F9="ILF",7.5,IF(F9="EIF",5.4)))))) -> 7.5 | J9: 기능변경 | L9: 10 | M9: =IFERROR(IF(J9="기능변경",K9/G9,""),"") ->  | N9: =IFERROR(IF(J9="기능변경",L9/H9,""),"") -> 50.0% | O9: =IF(J9="기능변경",IF(F9="ILF",N9,IF(F9="EIF","재검토",IF(M9=0,N9,IF(N9=0,M9,(M9+N9)/2)))),"") -> 50.0% | P9: =IF(O9<>0,IF(J9="기능변경",IF(O9<=0.33,0.25,IF(O9>0.66,0.75,0.5)),IF(J9="기능삭제",0,"")),"") -> 0.50 | Q9: =IFERROR(I9*P9,"") -> 3.75
B10: 총무시스템 | C10: 회의실관리 | D10: 회의실 사용실적 정보 | E10: 회의실 사용실적 저장 정보 | F10: ILF | H10: 15 | I10: 7.5 | J10: 기능변경 | L10: 5 | M10: =IFERROR(IF(J10="기능변경",K10/G10,""),"") ->  | N10: =IFERROR(IF(J10="기능변경",L10/H10,""),"") -> 33.3% | O10: =IF(J10="기능변경",IF(F10="ILF",N10,IF(F10="EIF","재검토",IF(M10=0,N10,IF(N10=0,M10,(M10+N10)/2)))),"") -> 33.3% | P10: =IF(O10<>0,IF(J10="기능변경",IF(O10<=0.33,0.25,IF(O10>0.66,0.75,0.5)),IF(J10="기능삭제",0,"")),"") -> 0.50 | Q10: =IFERROR(I10*P10,"") -> 3.75
B11: 총무시스템 | C11: 회의실관리 | D11: 회의실 정보 | E11: 회의실 관리 정보 | F11: ILF | H11: 10 | I11: 7.5 | J11: 기능삭제 | P11: 0.00 | Q11: 0.00
B12: 회계시스템 | C12: 회의실대여 | D12: 회의실대여 | E12: 회의실대여 비용정보 | F12: ILF | H12: 15 | I12: 7.5 | J12: 기능변경 | L12: 3 | N12: 20.0% | O12: 20.0% | P12: 0.25 | Q12: 1.88
B13: 총무시스템 | C13: 회의실관리 | D13: 회의실 신청 등록 | E13: 회의실 신청을 등록한다. | F13: EI | G13: 2 | H13: 27 | I13: 4.0 | J13: 기능변경 | L13: 3 | M13: 0.0% | N13: 11.1% | O13: 11.1% | P13: 0.25 | Q13: 1.00
B14: 총무시스템 | C14: 회의실관리 | D14: 회의실 신청 수정 | E14: 회의실 신청을 수정한다. | F14: EI | G14: 2 | H14: 22 | I14: 4.0 | J14: 기능변경 | L14: 3 | M14: 0.0% | N14: 13.6% | O14: 13.6% | P14: 0.25 | Q14: 1.00
B15: 총무시스템 | C15: 회의실관리 | D15: 회의실 신청 삭제 | E15: 회의실 신청내역을 삭제한다. | F15: EI | G15: 2 | H15: 5 | I15: 4.0 | J15: 기능변경 | K15: 1 | L15: 0 | M15: 50.0% | N15: 0.0% | O15: 50.0% | P15: 0.50 | Q15: 2.00
B16: 총무시스템 | C16: 회의실관리 | D16: 회의실 대여료 계산 | E16: 회의실 대여료를 계산한다. | F16: EO | G16: 2 | H16: 7 | I16: 5.2 | J16: 기능변경 | L16: 2 | M16: 0.0% | N16: 28.6% | O16: 28.6% | P16: 0.25 | Q16: 1.30
B17: 총무시스템 | C17: 회의실관리 | D17: 회의실 신청 조회 | E17: 회의실 신청내역을 조회한다. | F17: EQ | G17: 2 | H17: 30 | I17: 3.9 | J17: 기능변경 | L17: 1 | M17: 0.0% | N17: 3.3% | O17: 3.3% | P17: 0.25 | Q17: 0.98
B18: 사용자 메뉴 | C18: 서비스 가이드 | D18: FAQ | E18: FAQ | F18: ILF | H18: 5 | I18: 7.5 | J18: 신규개발
B19: 사용자 메뉴 | C19: 서비스 가이드 | D19: FAQ 등록 | E19: FAQ를 등록한다. | F19: EI | G19: 1 | H19: 7 | I19: 4.0 | J19: 수정없이 재사용
B20: 사용자 메뉴 | C20: 서비스 가이드 | D20: FAQ 수정 | E20: FAQ를 수정한다. | F20: EI | G20: 1 | H20: 7 | I20: 4.0 | J20: 수정없이 재사용
B21: 사용자 메뉴 | C21: 서비스 가이드 | D21: FAQ 삭제 | E21: FAQ를 삭제한다. | F21: EI | G21: 1 | H21: 4 | I21: 4.0 | J21: 수정없이 재사용
B22: 사용자 메뉴 | C22: 서비스 가이드 | D22: FAQ 조회 | E22: FAQ를 조회한다. | F22: EQ | G22: 1 | H22: 7 | I22: 3.9 | J22: 수정없이 재사용
B23: 사용자 메뉴 | C23: 회원 | D23: 회원 | E23: 회원 DB | F23: ILF | H23: 20 | I23: 7.5 | J23: 기능변경 | L23: 5 | N23: 25.0% | O23: 25.0% | P23: 0.25 | Q23: 1.88
B24: 사용자 메뉴 | C24: 회원 등록 | D24: 회원가입 | E24: 회원으로 가입한다. | F24: EI | G24: 1 | H24: 22 | I24: 4.0 | J24: 기능변경 | K24: 1 | L24: 10 | M24: 100.0% | N24: 45.5% | O24: 72.7% | P24: 0.75 | Q24: 3.00
B25: 사용자 메뉴 | C25: 회원 등록 | D25: 회원탈퇴 | E25: 회원에서 탈퇴한다. | F25: EI | G25: 1 | H25: 5 | I25: 4.0 | J25: 기능변경 | K25: 1 | L25: 1 | M25: 100.0% | N25: 20.0% | O25: 60.0% | P25: 0.50 | Q25: 2.00
I71: =IF(F71="","",IF(F71="EI",4,IF(F71="EO",5.2,IF(F71="EQ",3.9,IF(F71="ILF",7.5,IF(F71="EIF",5.4)))))) -> 
M74: =IFERROR(IF(J74="기능변경",K74/G74,""),"") ->  | N74: =IFERROR(IF(J74="기능변경",L74/H74,""),"") ->  | O74: =IF(J74="기능변경",IF(F74="ILF",N74,IF(F74="EIF","재검토",IF(M74=0,N74,IF(N74=0,M74,(M74+N74)/2)))),"") ->  | P74: =IF(O74<>0,IF(J74="기능변경",IF(O74<=0.33,0.25,IF(O74>0.66,0.75,0.5)),IF(J74="기능삭제",0,"")),"") ->  | Q74: =IFERROR(I74*P74,"") -> 

Sheet SW재개발비 산정
B1: "OOO 사업" 소프트웨어 재개발비 산정
N2: (소프트웨어사업 대가산정 가이드, 2024. KOSA)
B4: ○ 재개발비 산정 | N4: (단위 : 원)
B5: 신규개발 | E5: 신규개발 기능 규모 | G5: ='FP산정(간이법)'!K2 -> 7.5 FP
B6: 수정없이 재사용 | E6: 수정없이 재사용 대상 기능 규모 | G6: ='FP산정(간이법)'!K5 -> 15.9 FP | J6: 시험단계 비율 (0~25%) | M6: 25%
E7: 수정없이 재사용 기능 규모 | G7: =G6*M6 -> 4.0 FP
B8: 수정 후 재사용 | E8: 기능변경 규모 | G8: ='FP산정(간이법)'!K3 -> 22.53 FP
E9: 재사용 난이도 | G9: =1+((L9+L10)/2)/100*0.8 -> 1.28 | I9: 구조화 및 애플리케이션 명확화 정도 | L9: =HLOOKUP(N9,P9:T10,2,FALSE) -> 40 | N9: 어려움 | P9: 매우 어려움 | Q9: 어려움 | R9: 보통 | S9: 쉬움 | T9: 매우 쉬움
I10: 문서화 및 소스코드 서술화 정도 | L10: =HLOOKUP(N10,P9:T10,2,0) -> 30 | N10: 보통 | P10: 50 | Q10: 40 | R10: 30 | S10: 20 | T10: 10
E11: 수정 후 재사용 기능 규모 | G11: =G8*G9 -> 28.8 FP
B12: 재개발 기능 규모 | E12: =G5+G7+G11 -> 40.3 FP | K12: 기능점수당 단가 | M12: 605,784
B13: 보정전 재개발원가 | E13: =E12*M12 -> 24,417,336
B14: 보정계수 | E14: 규모 | G14: 연계복잡성 | I14: 성능 | K14: 운영환경 호환성 | M14: 보안성
E15: =M33 -> 1.2800 | G15: =M34 -> 0.94 | I15: =M35 -> 1.00 | K15: =M36 -> 0.94 | M15: =M37 -> 1.00
B16: ①보정후 재개발원가 | E16: =E13*E15*G15*I15*K15*M15 -> 27,616,202
B17: ②직접경비 | E17: =M29 -> 0
B18: ③이윤 | D18: 10% | E18: =ROUNDDOWN(E16*D18,) -> 2,761,620
B19: ④재개발 사업대가 (①+②+③) | E19: =SUM(E16:N18) -> 30,377,822
B20: ⑤할인금액 | E20: 5,000,000
B21: ⑥제안금액(VAT별도) (④-⑤) | E21: =E19-E20 -> 25,377,822
B24: ○ 직접경비 | N24: (단위 : 원)
B25: 항목 | E25: 산출내역 | M25: 금액
B29: 합 계 | M29: =SUM(M26:N28) -> 0
B31: ※ 보정계수 산정
B32: 보정계수 구분 | E32: 복잡도 및 난이도 수준 | M32: 보정계수
B33: SW규모 | E33: ="= 0.4057 x (log e("&E12&") - 7.1978)^2 + 0.8878 (단, 500FP 미만 1.28, 3,000FP 초과 1.153 적용)" -> = 0.4057 x (log e(40.307) - 7.1978)^2 + 0.8878 (단, 500FP 미만 1.28, 3,000FP 초과 1.153 적용) | M33: =IF(E12<500,1.28,IF(E12>3000,1.153,0.4057*(LN(E12)-7.1978)^2+0.8878)) -> 1.2800
B34: 연계복잡성 | E34: 2. 1~2개의 타 기관 연계 | M34: =VLOOKUP(E34,P34:Q38,2,1) -> 0.94 | P34: 1. 타 기관 연계 없음 | Q34: 0.88
B35: 성능 요구수준 | E35: 3. 응답시간이나 처리율이 피크타임(peak time)에 중요하며, 처리 시한이 명시되어 있다. | M35: =VLOOKUP(E35,P39:Q43,2,1) -> 1.00 | P35: 2. 1~2개의 타 기관 연계 | Q35: 0.94
B36: 운영환경 호환성 | E36: 1. 운영환경 호환성에 대한 요구사항이 없다. | M36: =VLOOKUP(E36,P44:Q48,2,1) -> 0.94 | P36: 3. 3~5개의 타 기관 연계 | Q36: 1.00
B37: 보안성 요구수준 | E37: 2. 2가지 요구사항이 포함되어 있다. | M37: =VLOOKUP(E37,P49:Q53,2,1) -> 1.00 | P37: 4. 6~10개의 타 기관 연계 | Q37: 1.06
P38: 5. 10개 초과의 타 기관 연계 | Q38: 1.12
P39: 1. 응답성능에 대한 특별한 요구사항이 없다. | Q39: 0.91
P40: 2. 응답성능에 대한 요구사항이 있으나 특별한 조치가 필요하지는 않다. | Q40: 0.95
P41: 3. 응답시간이나 처리율이 피크타임(peak time)에 중요하며, 처리 시한이 명시되어 있다. | Q41: 1.00
P42: 4. 응답시간이나 처리율이 모든 업무시간에 중요하며, 처리 시한이 명시되어 있다. | Q42: 1.05
P43: 5. 응답성능 요구수준이 엄격하여, 설계, 개발 또는 구현 단계에서 성능 분석도구 사용이 필요하다. | Q43: 1.09
P44: 1. 운영환경 호환성에 대한 요구사항이 없다. | Q44: 0.94
P45: 2. 운영환경 호환성에 대한 요구사항이 있으며, 동일 하드웨어 및 소프트웨어 환경에서 운영되도록 설계된다. | Q45: 1.00
P46: 3. 운영환경 호환성에 대한 요구사항이 있으며, 유사 하드웨어 및 소프트웨어 환경에서 운영되도록 설계된다. | Q46: 1.06
P47: 4. 운영환경 호환성에 대한 요구사항이 있으며, 이질적인 하드웨어 및 소프트웨어 환경에서 운영되도록 설계된다. | Q47: 1.13
P48: 5. 항목 4에 더하여 일반적 산출물 이외에 장소에서 원활한 운영을 보장하기 위한 운영 절차의 문서화와 사전 모의훈련이 요구된다. | Q48: 1.19
P49: 1. 암호화, 웹취약점 점검, 시큐어코딩, 개인정보보호 등 1가지 보안 요구사항이 포함되어 있다. | Q49: 0.97
P50: 2. 2가지 요구사항이 포함되어 있다. | Q50: 1.00
P51: 3. 3가지 요구사항이 포함되어 있다. | Q51: 1.03
P52: 4. 4가지 항목이 모두 포함되어 있다. | Q52: 1.06
P53: 5. 5가지 이상의 보안 요구사항이 포함되어 있다. | Q53: 1.08

Sheet (참고)보정계수
B1: '- "OOO 사업" 소프트웨어 재개발비 산정 - 재개발 기능점수 방식(간이법)
B3: ○ 재사용 난이도 수준 평가 기준
B4: 구분 | C4: 매우 어려움 | D4: 어려움 | E4: 보통 | F4: 쉬움 | H4: 매우 쉬움
B5: 재사용 난이도 | C5: 50 | D5: 40 | E5: 30 | F5: 20 | H5: 10
B6: ① 구조화 및 어플리케이션 명확화 정도 | C6: 프로그램의 모듈화가 전혀되어 있지 않아 모듈과 어플리케이션기능의 대응 정도가 거의 없음 | D6: 프로그램의 모듈화가 어느 정도 되어 있어, 모듈과 어플리케이션기능의 대응 정도가 낮은편임 | E6: 프로그램의 모듈화가 보통 정도로, 모듈과 어플리케이션기능의 대응 정도가 보통 수준임 | F6: 프로그램의 모듈화가 잘 되어 있어, 모듈과 어플리케이션기능의 대응 정도가 높은 편임 | H6: 프로그램의 모듈화가 매우 잘 되어 있어, 모듈과 어플리케이션기능의 대응 정도가 매우 높은 수준임
B7: ② 문서화 및 소스코드의 서술화 정도 | C7: 문서화 또는 소스코드 서술화가 모두 안 되어 있어 재사용 소프트웨어의 수정이 매우 어려운 수준 | D7: 문서화 또는 소스코드 서술화 중 어느 하나가 보통 수준으로 되어 있고 다른 하나는 안 되어 있어 재사용 소프트웨어의 수정이 어려운 수준 | E7: 문서화와 소스코드 서술화가 모두 보통 수준으로 되어 있어 재사용 소프트웨어의 수정이 보통 수준 | F7: 문서화 또는 소스코드 서술화 중 어느 하나가 잘 되어 있어 재사용 소프트웨어의 수정이 용이한 수준 | H7: 문서화와 소스코드의 서술화가 모두 잘되어 있어 재사용 소프트웨어의 수정이 매우 용이한 수준
B9: ○ 규모 보정계수
B10: 구분 | D10: 산정방법
B11: SW규모 | D11: = 0.4057 x (log e(기능점수) - 7.1978)^2 + 0.8878 (단, 500FP 미만 1.28, 3,000FP 초과 1.153 적용)
B13: ○ 애플리케이션 복잡도 보정계수
B14: 구분 | D14: 복잡도 및 난이도 수준 | I14: 보정계수
B15: 연계복잡성 | D15: 1. 타 기관 연계 없음 | I15: 0.88
D16: 2. 1~2개의 타 기관 연계 | I16: 0.94
D17: 3. 3~5개의 타 기관 연계 | I17: 1.00
D18: 4. 6~10개의 타 기관 연계 | I18: 1.06
D19: 5. 10개 초과의 타 기관 연계 | I19: 1.12
B20: 성능 요구수준 | D20: 1. 응답성능에 대한 특별한 요구사항이 없다. | I20: 0.91
D21: 2. 응답성능에 대한 요구사항이 있으나 특별한 조치가 필요하지는 않다. | I21: 0.95
D22: 3. 응답시간이나 처리율이 피크타임(peak time)에 중요하며, 처리 시한이 명시되어 있다. | I22: 1.00
D23: 4. 응답시간이나 처리율이 모든 업무시간에 중요하며, 처리 시한이 명시되어 있다. | I23: 1.05
D24: 5. 응답성능 요구수준이 엄격하여, 설계, 개발 또는 구현 단계에서 성능 분석도구 사용이 필요하다. | I24: 1.09
B25: 운영환경 호환성 | D25: 1. 운영환경 호환성에 대한 요구사항이 없다. | I25: 0.94
D26: 2. 운영환경 호환성에 대한 요구사항이 있으며, 동일 하드웨어 및 소프트웨어 환경에서 운영되도록 설계된다. | I26: 1.00
D27: 3. 운영환경 호환성에 대한 요구사항이 있으며, 유사 하드웨어 및 소프트웨어 환경에서 운영되도록 설계된다. | I27: 1.06
D28: 4. 운영환경 호환성에 대한 요구사항이 있으며, 이질적인 하드웨어 및 소프트웨어 환경에서 운영되도록 설계된다. | I28: 1.13
D29: 5. 항목 4에 더하여 일반적 산출물 이외에 장소에서 원활한 운영을 보장하기 위한 운영 절차의 문서화와 사전 모의훈련이 요구된다. | I29: 1.19
B30: 보안성 요구수준 | D30: 1. 암호화, 웹취약점 점검, 시큐어코딩, 개인정보보호 등 1가지 보안 요구사항이 포함되어 있다. | I30: 0.97
D31: 2. 2가지 요구사항이 포함되어 있다. | I31: 1.00
D32: 3. 3가지 요구사항이 포함되어 있다. | I32: 1.03
D33: 4. 4가지 항목이 모두 포함되어 있다. | I33: 1.06
D34: 5. 5가지 이상의 보안 요구사항이 포함되어 있다. | I34: 1.08
